bitfinex/quotes_SOLUSD_20250228
["timestamp","ask_amount","ask_price","bid_price","bid_amount"]
[1740715541897,0.14216157,126.87,126.76,0.03]
[1740715542076,0.14216157,126.85,126.76,0.03]
[1740715542278,0.14216157,126.88,126.76,0.03]
[1740715542471,4.69791122,126.93,126.76,0.03]
[1740715542805,0.14216157,126.91,126.76,0.03]
[1740715543099,7.8758,126.97,126.76,0.03]
[1740715543394,132.88,126.98,126.77,0.14216157]
[1740715543606,142.18885527,126.98,126.76,0.03]
[1740715543806,0.14216157,126.94,126.76,136.53]
[1740715544108,0.14216157,126.96,126.77,0.14216157]
[1740715544279,0.14216157,126.94,126.76,0.03]
[1740715544481,0.14216157,126.94,126.79,20.0]
[1740715544820,7.8725,127.03,126.79,136.5]
[1740715545110,22.78325175,127.04,126.79,136.5]
[1740715545111,22.78325175,127.04,126.81,4.15328242]
[1740715545309,16.22935829,127.07,126.88,3.87250589]
[1740715545482,16.22935829,127.07,126.89,0.14216157]
[1740715545997,16.22935829,127.07,126.93,0.14216157]
[1740715546205,11.39162587,127.08,126.97,0.14216157]
[1740715546399,11.39162587,127.08,126.97,136.5]
[1740715546596,11.39162587,127.08,126.98,0.14216157]
[1740715546800,11.39162587,127.08,126.98,156.64216157]
[1740715547000,11.39162587,127.08,126.98,164.51726157]
[1740715547296,11.39162587,127.08,126.98,184.20536157]
[1740715547715,22.78325175,127.1,126.98,272.21761839]
[1740715547921,6.97282521,127.1,127.0,0.14216157]
[1740715548109,6.97282521,127.1,127.02,0.14216157]
[1740715548318,9.98643324,127.17,127.07,3.87197345]
[1740715548498,0.063,127.27,127.08,0.14216157]
[1740715548698,0.063,127.27,127.1,0.14216157]
[1740715548925,0.063,127.27,127.13,20.14216157]
[1740715549215,0.063,127.27,127.13,289.46216157]
[1740715549415,0.063,127.27,127.13,156.82671041]
[1740715549608,0.063,127.27,127.13,468.82671041]
[1740715550005,0.063,127.27,127.15,0.14216157]
[1740715550605,0.063,127.27,127.14,0.14216157]
[1740715551207,0.063,127.27,127.15,0.21324235]
[1740715551410,0.063,127.27,127.16,0.14216157]
[1740715551624,0.063,127.27,127.18,0.14216157]
[1740715551801,0.063,127.27,127.21,20.0]
[1740715552008,132.82,127.48,127.27,0.14216157]
[1740715552323,7.8421,127.52,127.31,0.14216157]
[1740715552535,24.07743841,127.54,127.35,0.14216157]
[1740715552704,24.07733841,127.54,127.35,136.5]
[1740715552909,24.07723841,127.54,127.36,0.14216157]
[1740715553130,16.23663841,127.54,127.36,0.14216157]
[1740715553310,16.23663841,127.54,127.36,136.64216157]
[1740715553508,16.23663841,127.54,127.37,0.14216157]
[1740715553712,132.72,127.56,127.37,0.14216157]
[1740715553912,7.8408,127.54,127.37,0.14216157]
[1740715554111,27.4424,127.54,127.29,0.14216157]
[1740715554334,27.4424,127.54,127.28,1.6006]
[1740715554335,20.14216157,127.5,127.28,1.6006]
[1740715554644,20.14216157,127.5,127.26,269.22]
[1740715554809,20.14216157,127.45,127.26,132.72]
[1740715555133,20.14216157,127.45,127.26,269.22]
[1740715555632,0.14216157,127.43,127.19,138.1438]
[1740715555838,0.81347519,127.39,127.2,1.65013158]
[1740715556137,0.81347519,127.44,127.23,20.0]
[1740715556439,0.14216157,127.39,127.23,136.5]
[1740715556610,0.81347519,127.38,127.23,136.5]
[1740715557034,0.81347519,127.38,127.24,0.14216157]
[1740715557223,0.063,127.4,127.26,20.0]
[1740715557541,7.9123,127.4,127.24,1.64941035]
[1740715557715,0.81347519,127.39,127.24,136.5]
[1740715557907,0.063,127.4,127.25,0.14216157]
[1740715558126,0.063,127.4,127.28,0.14216157]
[1740715558336,0.063,127.4,127.28,156.64216157]
[1740715558839,0.063,127.4,127.3,0.14216157]
[1740715559005,0.063,127.4,127.32,0.14216157]
[1740715559212,0.063,127.4,127.36,0.14216157]
[1740715559405,0.87647519,127.49,127.4,0.14216157]
[1740715559606,0.063,127.49,127.4,0.14216157]
[1740715559849,0.063,127.49,127.4,136.5]
[1740715560011,0.063,127.49,127.41,0.14216157]
[1740715560337,0.063,127.49,127.36,0.14216157]
[1740715560633,0.063,127.49,127.37,20.0]
[1740715560830,0.063,127.49,127.38,0.14216157]
[1740715561137,0.063,127.49,127.38,136.64216157]
[1740715561842,0.063,127.49,127.28,143.99745476]
[1740715561843,0.063,127.49,127.29,136.5]
[1740715562138,0.063,127.49,127.3,1.64829222]
[1740715562442,0.063,127.49,127.31,0.14216157]
[1740715562621,0.063,127.49,127.33,20.14216157]
[1740715562947,0.063,127.49,127.35,0.14216157]
[1740715563119,0.063,127.49,127.4,0.14216157]
[1740715563441,0.063,127.49,127.42,0.14216157]
[1740715563611,0.063,127.49,127.42,136.64216157]
[1740715563815,0.063,127.49,127.42,138.15466157]
[1740715564023,0.063,127.49,127.45,0.14216157]
[1740715564224,0.063,127.49,127.45,136.64216157]
[1740715564740,0.063,127.49,127.48,0.14216157]
[1740715564939,0.063,127.49,127.45,136.5]
[1740715565234,0.063,127.49,127.42,138.0125]
[1740715565444,0.063,127.49,127.42,136.5]
[1740715565616,20.0,127.57,127.42,136.5]
[1740715565820,20.0,127.57,127.43,0.14216157]
[1740715566155,7.866,127.62,127.47,0.14216157]
[1740715566461,0.03,127.62,127.47,136.64216157]
[1740715566632,0.03,127.62,127.51,0.14216157]
[1740715566839,0.03,127.62,127.51,136.64216157]
[1740715567460,20.03,127.62,127.47,0.14216157]
[1740715567645,0.14216157,127.61,127.46,136.5]
[1740715567843,20.03,127.62,127.46,136.5]
[1740715568036,0.14216157,127.61,127.46,103.90282318]
[1740715568237,0.14216157,127.61,127.41,110.46282318]
[1740715568443,82.8,127.6,127.41,6.56]
[1740715568648,0.14216157,127.56,127.4,105.54222318]
[1740715568848,0.14216157,127.56,127.37,103.90282318]
[1740715569051,0.14216157,127.54,127.34,103.90282318]
[1740715569245,27.4444,127.53,127.34,103.90282318]
[1740715569450,7.8406,127.55,127.34,103.90282318]
[1740715569636,7.97976157,127.59,127.37,20.0]
[1740715569838,20.0,127.56,127.37,103.90282318]
[1740715570055,20.0,127.56,127.38,0.14216157]
[1740715570264,7.97976157,127.59,127.41,20.14216157]
[1740715570562,7.97976157,127.59,127.41,124.04498475]
[1740715570952,0.03,127.62,127.41,124.04498475]
[1740715571135,0.03,127.62,127.43,7.98956157]
[1740715571640,0.03,127.62,127.47,0.14216157]
[1740715571841,0.03,127.62,127.47,104.04498475]
[1740715572057,0.03,127.62,127.51,0.14216157]
[1740715572365,0.03,127.62,127.55,0.14216157]
[1740715572563,0.03,127.62,127.55,104.04498475]
[1740715572863,0.03,127.62,127.56,0.14216157]
[1740715573064,0.03,127.62,127.56,185.64498475]
[1740715573261,0.03,127.62,127.58,0.14216157]
[1740715573461,0.03,127.66,127.62,0.14216157]
[1740715573638,82.8,127.84,127.66,0.14216157]
[1740715573838,6.21875678,127.86,127.64,0.14216157]
[1740715574059,82.8,127.86,127.64,104.04498475]
[1740715574255,7.8228,127.84,127.68,0.14216157]
[1740715574470,7.8228,127.84,127.68,104.04498475]
[1740715574636,7.8218,127.85,127.68,103.90282318]
[1740715574954,82.8,127.86,127.68,103.90282318]
[1740715574955,82.8,127.86,127.69,0.14216157]
[1740715575155,89.15077508,127.92,127.69,185.50282318]
[1740715575458,7.823,127.83,127.63,87.14006973]
[1740715575761,0.17216157,127.82,127.64,0.14216157]
[1740715575962,0.17216157,127.82,127.63,136.5]
[1740715576138,20.0,127.8,127.64,0.14216157]
[1740715576339,20.0,127.8,127.64,136.64216157]
[1740715576954,0.14216157,127.78,127.62,132.34]
[1740715577137,0.14216157,127.76,127.56,144.6689]
[1740715577337,0.14216157,127.71,127.56,136.5]
[1740715577553,0.03,127.66,127.53,132.24]
[1740715578152,0.17216157,127.66,127.48,224.1238]
[1740715578462,102.97216157,127.66,127.43,132.24]
[1740715578673,102.97216157,127.66,127.43,268.74]
[1740715578849,0.14216157,127.64,127.43,132.24]
[1740715579040,0.14216157,127.59,127.43,132.24]
[1740715579247,20.0,127.6,127.43,268.74]
[1740715579543,7.8339,127.65,127.47,0.14216157]
[1740715579742,0.03,127.66,127.51,0.14216157]
[1740715579942,0.03,127.66,127.55,0.14216157]
[1740715580147,0.03,127.66,127.59,0.14216157]
[1740715580352,0.03,127.66,127.56,0.14216157]
[1740715580551,7.8635,127.66,127.51,136.5]
[1740715580758,20.0,127.63,127.47,268.72]
[1740715580961,0.14216157,127.62,127.47,132.22]
[1740715581171,102.94216157,127.62,127.4,142.7014]
[1740715581377,0.14216157,127.57,127.4,142.7014]
[1740715581669,20.0,127.58,127.4,136.5]
[1740715581872,0.14216157,127.57,127.4,136.5]
[1740715582174,20.0,127.54,127.32,142.54]
[1740715582355,0.14216157,127.53,127.32,142.54]
[1740715582553,20.0,127.54,127.32,224.14]
[1740715582844,82.8,127.57,127.33,0.14216157]
[1740715583060,20.0,127.58,127.36,0.14216157]
[1740715583252,7.8378,127.59,127.36,219.67791174]
[1740715583460,20.0,127.56,127.36,219.67791174]
[1740715583653,7.8357,127.62,127.38,3.91598551]
[1740715583853,9.26925527,127.62,127.38,136.5]
[1740715584058,0.14216157,127.61,127.38,218.1]
[1740715584360,82.8,127.61,127.42,0.14216157]
[1740715584566,7.8357,127.62,127.46,0.14216157]
[1740715584898,20.0,127.59,127.46,136.64216157]
[1740715585079,20.0,127.59,127.47,0.14216157]
[1740715585246,0.14216157,127.59,127.41,268.72]
[1740715585447,20.0,127.57,127.44,20.0]
[1740715585646,20.0,127.57,127.45,0.14216157]
[1740715585869,7.8339,127.65,127.49,0.14216157]
[1740715586071,7.8339,127.65,127.52,20.0]
[1740715586253,7.8634,127.66,127.53,0.14216157]
[1740715586446,0.03,127.66,127.56,20.0]
[1740715586651,0.03,127.66,127.57,0.14216157]
[1740715586878,0.03,127.66,127.57,136.64216157]
[1740715587076,0.03,127.66,127.61,0.14216157]
[1740715587258,0.03,127.66,127.57,144.3385]
[1740715587448,0.03,127.66,127.54,0.14216157]
[1740715587656,0.03,127.66,127.54,136.64216157]
[1740715587973,0.03,127.66,127.58,0.14216157]
[1740715588155,0.03,127.66,127.62,0.14216157]
[1740715588348,0.03,127.66,127.62,136.64216157]
[1740715588763,0.03,127.79,127.66,20.14216157]
[1740715588960,0.03,127.79,127.66,238.24216157]
[1740715589280,20.0,127.76,127.63,268.7]
[1740715589469,27.8271,127.76,127.64,0.14216157]
[1740715589667,0.03,127.71,127.58,0.14216157]
[1740715589877,0.03,127.71,127.58,136.64216157]
[1740715590058,0.03,127.71,127.58,218.24216157]
[1740715590260,0.03,127.71,127.58,136.64216157]
[1740715590467,0.03,127.71,127.55,132.2]
[1740715590671,0.14216157,127.7,127.55,132.2]
[1740715590859,20.14216157,127.66,127.49,219.6911]
[1740715591074,20.0,127.66,127.49,219.6911]
[1740715591271,0.03,127.71,127.49,219.6911]
[1740715591572,0.03,127.71,127.53,0.14216157]
[1740715591884,0.03,127.71,127.57,0.14216157]
[1740715592085,0.03,127.71,127.61,20.14216157]
[1740715592286,0.03,127.71,127.61,238.24216157]
[1740715592669,0.03,127.71,127.61,156.64216157]
[1740715592983,0.03,127.71,127.61,136.5]
[1740715593289,0.03,127.71,127.62,7.97786157]
[1740715593483,0.03,127.71,127.66,0.14216157]
[1740715593974,0.03,127.71,127.62,136.5]
[1740715594174,0.03,127.71,127.59,144.3376]
[1740715594376,0.03,127.71,127.59,136.5]
[1740715594689,0.03,127.71,127.59,144.3375]
[1740715594860,0.03,127.71,127.63,0.14216157]
[1740715595059,0.03,127.71,127.63,136.64216157]
[1740715595272,0.03,127.71,127.59,136.5]
[1740715595572,0.03,127.71,127.58,268.66]
[1740715595977,0.17216157,127.71,127.54,142.9461]
[1740715596179,0.17216157,127.71,127.5,268.64]
[1740715596180,20.14216157,127.67,127.5,268.64]
[1740715596379,20.0,127.63,127.5,132.14]
[1740715596578,0.14216157,127.62,127.46,0.063]
[1740715596794,20.14216157,127.58,127.46,0.063]
[1740715597466,20.0,127.58,127.48,0.14216157]
[1740715597671,7.8333,127.66,127.51,20.0]
[1740715597971,7.8326,127.68,127.52,0.14216157]
[1740715598181,7.8326,127.68,127.51,20.0]
[1740715598393,7.8326,127.68,127.46,0.063]
[1740715598685,0.03,127.71,127.47,1.57667277]
[1740715598866,0.03,127.71,127.54,20.0]
[1740715599072,0.03,127.71,127.59,0.14216157]
[1740715599279,0.03,127.71,127.59,136.5]
[1740715599587,0.03,127.71,127.56,0.14216157]
[1740715599795,0.03,127.71,127.55,132.12]
[1740715599997,84.40571684,127.71,127.47,356.6188]
[1740715600168,0.14216157,127.67,127.47,132.12]
[1740715600369,0.14216157,127.65,127.46,0.063]
[1740715600591,0.14216157,127.6,127.46,0.063]
[1740715600893,0.14216157,127.58,127.46,0.063]
[1740715601094,0.14216157,127.55,127.46,0.063]
[1740715601304,0.14216157,127.5,127.46,0.063]
[1740715601487,7.8437,127.49,127.46,0.063]
[1740715601692,20.14216157,127.47,127.46,0.063]
[1740715602189,20.0,127.47,127.46,0.063]
[1740715602397,0.14216157,127.46,127.37,0.063]
[1740715602769,0.14216157,127.44,127.37,0.063]
[1740715602990,0.14216157,127.39,127.37,0.063]
[1740715603187,20.0,127.4,127.37,0.063]
[1740715603395,0.14216157,127.48,127.37,0.063]
[1740715603592,7.8419,127.52,127.37,0.063]
[1740715603807,16.43404334,127.5,127.37,136.563]
[1740715604009,20.0,127.47,127.37,0.063]
[1740715604189,0.14216157,127.45,127.37,0.063]
[1740715604592,0.14216157,127.45,127.31,136.563]
[1740715604787,16.43404334,127.5,127.31,144.4177]
[1740715605000,16.43404334,127.5,127.35,0.14216157]
[1740715605198,20.0,127.47,127.35,136.64216157]
[1740715605406,20.0,127.47,127.34,20.0]
[1740715605705,0.14216157,127.43,127.31,0.063]
[1740715605918,20.0,127.44,127.31,136.563]
[1740715606120,7.8443,127.48,127.32,0.14216157]
[1740715606290,27.4445,127.53,127.35,0.14216157]
[1740715606492,82.8,127.52,127.35,136.64216157]
[1740715606693,20.0,127.49,127.35,136.64216157]
[1740715607002,0.81347519,127.51,127.39,20.14216157]
[1740715607208,0.14216157,127.49,127.36,132.26]
[1740715607414,0.14216157,127.47,127.36,132.26]
[1740715607717,0.81347519,127.46,127.37,0.14216157]
[1740715608016,0.81347519,127.53,127.41,0.14216157]
[1740715608312,20.0,127.49,127.37,6.4202]
[1740715608514,20.81347519,127.48,127.33,1.5159]
[1740715608718,0.14216157,127.47,127.34,20.14216157]
[1740715608901,0.14216157,127.45,127.33,1.5159]
[1740715609217,20.81347519,127.44,127.31,0.063]
[1740715609418,20.81347519,127.44,127.31,136.563]
[1740715609599,0.81347519,127.44,127.32,7.99626157]
[1740715609920,0.81347519,127.44,127.36,0.14216157]
[1740715610108,0.81347519,127.49,127.4,0.14216157]
[1740715610319,0.81347519,127.52,127.44,0.14216157]
[1740715610514,102.3952,127.59,127.4,136.5]
[1740715610515,20.0,127.53,127.4,136.5]
[1740715610814,0.14216157,127.51,127.36,132.28]
[1740715610993,20.0,127.48,127.36,132.28]
[1740715611200,0.81347519,127.47,127.39,20.0]
[1740715611404,0.81347519,127.55,127.39,156.5]
[1740715611622,20.0,127.49,127.36,132.28]
[1740715611924,0.81347519,127.48,127.36,132.28]
[1740715612718,0.14216157,127.47,127.36,132.343]
[1740715612914,0.81347519,127.46,127.36,132.343]
[1740715613322,0.81347519,127.46,127.37,0.14216157]
[1740715613827,0.03,127.47,127.36,132.343]
[1740715614210,20.03,127.47,127.37,0.14216157]
[1740715614529,0.03,127.47,127.4,20.14216157]
[1740715614729,0.03,127.47,127.36,276.6947]
[1740715615025,20.0,127.44,127.36,0.063]
[1740715615326,0.81347519,127.43,127.36,0.063]
[1740715616018,20.81347519,127.43,127.36,0.063]
[1740715616204,0.81347519,127.43,127.36,0.063]
[1740715616395,27.8455,127.46,127.36,0.063]
[1740715616614,20.0,127.44,127.36,0.063]
[1740715616927,0.81347519,127.43,127.36,0.063]
[1740715617229,0.81347519,127.46,127.36,0.063]
[1740715617401,0.81347519,127.45,127.36,0.063]
[1740715617603,20.0,127.44,127.36,0.063]
[1740715617811,27.99076157,127.42,127.36,0.063]
[1740715618021,0.14216157,127.4,127.36,0.063]
[1740715618326,20.14216157,127.37,127.36,0.063]
[1740715618523,20.95563676,127.37,127.31,0.063]
[1740715618735,1.43355527,127.36,127.31,0.0378]
[1740715618924,83.75563676,127.35,127.31,0.0378]
[1740715619222,0.14216157,127.33,127.31,0.0378]
[1740715619429,0.14216157,127.31,127.14,0.6425]
[1740715619623,0.14216157,127.29,127.14,0.6425]
[1740715619928,0.81347519,127.28,127.15,0.14216157]
[1740715620100,0.81347519,127.28,127.15,136.5]
[1740715620304,20.0,127.27,127.15,136.5]
[1740715620527,0.81347519,127.28,127.16,1.79316396]
[1740715620700,0.81347519,127.27,127.14,137.1425]
[1740715620902,0.14216157,127.3,127.14,136.5]
[1740715621102,0.14216157,127.25,127.11,6.4284]
[1740715621321,0.14216157,127.23,127.08,136.5]
[1740715621523,0.14216157,127.21,127.03,142.5276]
[1740715621716,0.14216157,127.19,127.03,6.0276]
[1740715621915,0.14216157,127.21,127.03,6.0276]
[1740715621916,0.81347519,127.18,127.03,6.0276]
[1740715622109,0.81347519,127.21,127.03,142.5276]
[1740715622310,0.81347519,127.21,127.03,150.3996]
[1740715622517,0.81347519,127.21,127.06,20.0]
[1740715622718,0.14216157,127.2,127.06,156.5]
[1740715622921,0.81347519,127.19,127.06,136.5]
[1740715623123,0.81347519,127.24,127.07,1.65176394]
[1740715623329,7.8566,127.29,127.08,0.14216157]
[1740715623330,0.81347519,127.23,127.08,0.14216157]
[1740715623619,0.81347519,127.23,127.06,136.5]
[1740715623823,0.81347519,127.23,127.1,0.14216157]
[1740715624011,0.81347519,127.27,127.15,0.14216157]
[1740715624207,0.81347519,127.26,127.15,136.64216157]
[1740715624399,0.81347519,127.32,127.12,1.65092588]
[1740715624599,20.0,127.28,127.12,136.5]
[1740715624823,20.0,127.24,127.11,132.48]
[1740715625018,0.81347519,127.23,127.11,268.98]
[1740715625304,0.81347519,127.23,127.15,0.14216157]
[1740715625525,20.0,127.24,127.14,20.0]
[1740715625825,20.0,127.22,127.05,144.3703]
[1740715626022,0.95563676,127.21,127.03,282.8791]
[1740715626234,0.14216157,127.17,127.03,275.0076]
[1740715626411,0.81347519,127.16,127.03,138.5076]
[1740715626625,0.14216157,127.13,126.98,136.563]
[1740715626833,20.0,127.14,126.99,1.65319554]
[1740715626834,0.81347519,127.12,126.99,1.65319554]
[1740715627133,0.81347519,127.13,126.99,136.5]
[1740715627312,20.0,127.1,126.98,0.063]
[1740715627513,0.95563676,127.09,126.98,0.063]
[1740715627924,0.14216157,127.05,126.98,0.063]
[1740715628252,0.81347519,127.04,126.98,0.063]
[1740715628409,0.14216157,127.03,126.9,136.53]
[1740715628608,0.14216157,127.01,126.9,0.03]
[1740715628833,0.81347519,127.0,126.9,0.03]
[1740715629108,0.81347519,127.01,126.9,0.03]
[1740715629307,0.81347519,127.07,126.94,0.14216157]
[1740715629530,0.81347519,127.12,126.98,0.14216157]
[1740715629828,0.14216157,127.11,126.98,136.64216157]
[1740715630130,0.14216157,127.09,126.93,218.1]
[1740715630336,0.14216157,127.07,126.93,20.0]
[1740715630643,0.81347519,127.06,126.94,20.0]
[1740715630826,0.14216157,127.1,126.94,156.5]
[1740715631014,0.81347519,127.09,126.98,0.14216157]
[1740715631210,0.81347519,127.11,127.01,20.0]
[1740715631443,0.81347519,127.11,127.02,0.14216157]
[1740715631610,0.81347519,127.18,127.02,136.64216157]
[1740715631812,0.81347519,127.18,127.02,136.5]
[1740715632010,0.81347519,127.18,127.05,0.14216157]
[1740715632218,0.81347519,127.24,127.09,0.14216157]
[1740715632429,0.81347519,127.24,127.11,0.14216157]
[1740715632726,0.81347519,127.24,127.05,136.5]
[1740715633034,83.61347519,127.28,127.09,0.14216157]
[1740715633231,0.81347519,127.28,127.14,20.0]
[1740715633536,0.81347519,127.31,127.15,0.14216157]
[1740715633709,0.81347519,127.31,127.15,138.29285184]
[1740715633912,0.81347519,127.33,127.15,136.64216157]
[1740715634119,0.81347519,127.33,127.15,0.14216157]
[1740715634328,0.81347519,127.33,127.15,8.00676157]
[1740715634630,0.81347519,127.33,127.19,0.14216157]
[1740715634833,0.063,127.34,127.23,0.14216157]
[1740715635018,0.063,127.34,127.22,136.5]
[1740715635332,0.063,127.34,127.17,0.14216157]
[1740715635637,0.063,127.34,127.15,145.926]
[1740715635638,0.81347519,127.33,127.15,138.0614]
[1740715635812,20.81347519,127.33,127.13,132.64]
[1740715636009,20.81347519,127.33,127.09,7.8678]
[1740715636010,20.0,127.27,127.09,7.8678]
[1740715636212,103.75563676,127.26,127.07,1.6155]
[1740715636417,20.81347519,127.26,127.1,20.0]
[1740715636611,0.81347519,127.26,127.11,1.651229]
[1740715637026,0.14216157,127.25,127.07,145.9851]
[1740715637223,0.14216157,127.23,127.05,132.6]
[1740715637417,0.81347519,127.22,127.05,140.4709]
[1740715637617,0.81347519,127.26,127.09,0.14216157]
[1740715637816,0.81347519,127.32,127.13,0.14216157]
[1740715638137,0.81347519,127.32,127.13,7.8659]
[1740715638138,0.14216157,127.29,127.13,7.8659]
[1740715638313,0.81347519,127.28,127.14,0.14216157]
[1740715638514,0.81347519,127.28,127.14,138.15105668]
[1740715638515,0.063,127.26,127.14,138.15105668]
[1740715638820,0.063,127.26,127.15,0.14216157]
[1740715639034,0.063,127.26,127.13,0.14216157]
[1740715639222,0.063,127.26,127.16,20.14216157]
[1740715639535,0.063,127.26,127.18,0.14216157]
[1740715639738,0.063,127.26,127.22,0.14216157]
[1740715640038,0.063,127.34,127.29,20.0]
[1740715640417,0.063,127.34,127.3,0.14216157]
[1740715640619,0.063,127.34,127.33,20.14216157]
[1740715640823,0.0001,127.34,127.33,156.64216157]
[1740715641236,0.063,127.39,127.34,0.14216157]
[1740715641438,0.063,127.39,127.38,0.14216157]
[1740715641644,0.063,127.39,127.37,20.0]
[1740715641830,0.063,127.39,127.38,0.14216157]
[1740715642226,0.063,127.39,127.38,136.64216157]
[1740715642423,0.03,127.47,127.42,0.14216157]
[1740715642634,0.03,127.47,127.39,0.14216157]
[1740715642955,0.03,127.47,127.41,0.14216157]
[1740715643131,0.03,127.47,127.36,6.3405]
[1740715643132,0.03,127.47,127.37,0.14216157]
[1740715643341,0.03,127.47,127.34,136.5]
[1740715643641,0.03,127.47,127.29,6.3405]
[1740715643821,0.84347519,127.47,127.29,142.8405]
[1740715644026,0.14216157,127.46,127.29,6.3405]
[1740715644239,0.14216157,127.44,127.28,136.5]
[1740715644422,0.14216157,127.42,127.26,138.149]
[1740715644622,0.81347519,127.41,127.27,1.64943438]
[1740715644849,0.03,127.47,127.28,0.14216157]
[1740715645036,0.84347519,127.47,127.31,20.0]
[1740715645238,0.14216157,127.46,127.31,136.5]
[1740715645438,0.81347519,127.45,127.32,1.7910893]
[1740715645649,0.03,127.47,127.36,0.14216157]
[1740715645825,0.84347519,127.47,127.28,140.52591581]
[1740715646031,102.8,127.46,127.26,146.0067]
[1740715646229,0.95563676,127.45,127.26,138.149]
[1740715646450,8.80193676,127.45,127.26,136.5]
[1740715646649,0.14216157,127.4,127.24,268.98]
[1740715646836,0.14216157,127.36,127.22,142.5568]
[1740715647041,0.81347519,127.35,127.2,136.5]
[1740715647234,0.81347519,127.35,127.23,20.0]
[1740715647453,0.81347519,127.39,127.24,1.64945648]
[1740715647655,0.95563676,127.44,127.28,0.14216157]
[1740715647853,0.95563676,127.44,127.28,218.24216157]
[1740715648034,20.0,127.43,127.28,218.1]
[1740715648356,0.81347519,127.42,127.28,136.5]
[1740715648558,0.81347519,127.45,127.32,0.14216157]
[1740715648757,0.03,127.47,127.36,0.14216157]
[1740715648957,0.03,127.47,127.36,136.64216157]
[1740715649257,0.03,127.47,127.4,0.14216157]
[1740715649518,0.03,127.47,127.42,0.14216157]
[1740715649764,0.03,127.47,127.44,0.14216157]
[1740715649937,0.03,127.47,127.46,20.14216157]
[1740715650135,0.03,127.47,127.46,164.48766157]
[1740715650342,0.84347519,127.6,127.47,0.14216157]
[1740715650534,0.81347519,127.59,127.5,20.0]
[1740715650847,0.03,127.6,127.5,156.5]
[1740715651158,0.03,127.47,127.39,218.1]
[1740715651358,0.03,127.47,127.4,7.8492]
[1740715651531,0.03,127.47,127.4,225.9492]
[1740715652040,0.03,127.47,127.4,136.5]
[1740715652252,0.03,127.47,127.4,225.9489]
[1740715652442,0.03,127.47,127.41,0.14216157]
[1740715652642,0.03,127.47,127.44,20.14216157]
[1740715652845,0.03,127.47,127.46,0.14216157]
[1740715653043,0.03,127.47,127.46,218.24216157]
[1740715653436,0.03,127.47,127.46,136.64216157]
[1740715653838,0.03,127.47,127.4,225.9489]
[1740715654371,0.03,127.47,127.4,218.1]
[1740715654744,0.03,127.47,127.37,132.5]
[1740715654951,0.14216157,127.46,127.31,218.1]
[1740715655134,0.81347519,127.45,127.3,150.8309]
[1740715655941,0.14216157,127.44,127.3,150.8309]
[1740715656155,0.81347519,127.44,127.31,1.64885948]
[1740715656365,0.81347519,127.46,127.38,0.14216157]
[1740715656559,0.03,127.47,127.38,136.64216157]
[1740715656955,0.03,127.47,127.37,20.0]
[1740715657164,0.03,127.47,127.35,136.5]
[1740715657165,0.84347519,127.47,127.35,136.5]
[1740715657959,0.14216157,127.46,127.32,136.5]
[1740715658263,0.14216157,127.44,127.31,144.3547]
[1740715658451,20.0,127.41,127.29,268.88]
[1740715658760,0.81347519,127.43,127.33,0.14216157]
[1740715658964,0.98563676,127.47,127.33,0.14216157]
[1740715659261,0.84347519,127.47,127.33,136.64216157]
[1740715659465,0.84347519,127.47,127.36,20.0]
[1740715659669,0.84347519,127.47,127.37,0.14216157]
[1740715659987,0.03,127.47,127.36,156.5]
[1740715660168,0.03,127.47,127.37,20.0]
[1740715660472,0.84347519,127.47,127.36,0.14216157]
[1740715660760,0.84347519,127.47,127.39,20.0]
[1740715660962,0.03,127.47,127.36,218.1]